fUSD/lending_fUSD_20240116
["ID","MTS","AMOUNT","RATE_DAILY","PERIOD"]
[311729722,1705367439345,-295.08684247,0.00022183,2]
[311729723,1705367439355,-2133.7271505,0.00022183,2]
[311729724,1705367439365,-245.18505928,0.00022183,2]
[311729725,1705367439375,-194.42373898,0.00022183,2]
[311729726,1705367439387,-839.32942768,0.00022183,2]
[311729727,1705367439396,-38989.92626063,0.00022183,2]
[311729728,1705367439406,-242.04927241,0.00022183,2]
[311729729,1705367439415,-155.0,0.00022183,2]
[311729730,1705367439424,-155.0,0.00022183,2]
[311729731,1705367439435,-306.17069153,0.00022183,2]
[311729732,1705367439444,-155.27919371,0.00022183,2]
[311729733,1705367439452,-500.0,0.00022183,2]
[311729734,1705367439463,-564.17,0.00022183,2]
[311729735,1705367439472,-500.0,0.00022183,2]
[311729736,1705367439482,-500.0,0.00022183,2]
[311729737,1705367439494,-500.0,0.00022183,2]
[311729738,1705367439504,-500.0,0.00022183,2]
[311729739,1705367439516,-500.0,0.00022183,2]
[311729740,1705367439526,-1271.66,0.00022183,2]
[311729741,1705367439538,-886.52,0.00022183,2]
[311729742,1705367439547,-610.98,0.00022183,2]
[311729743,1705367439559,-697.25,0.00022183,2]
[311729744,1705367439568,-654.9,0.00022183,2]
[311729745,1705367439577,-500.0,0.00022183,2]
[311729746,1705367439586,-500.0,0.00022183,2]
[311729747,1705367439596,-500.0,0.00022183,2]
[311729748,1705367439606,-500.0,0.00022183,2]
[311729749,1705367439615,-500.0,0.00022183,2]
[311729750,1705367439625,-500.0,0.00022183,2]
[311729751,1705367439636,-1476.64,0.00022183,2]
[311729752,1705367439645,-500.0,0.00022183,2]
[311729753,1705367439655,-500.0,0.00022183,2]
[311729754,1705367439665,-500.0,0.00022183,2]
[311729755,1705367439674,-500.0,0.00022183,2]
[311729756,1705367439684,-799.56,0.00022183,2]
[311729757,1705367439693,-500.0,0.00022183,2]
[311729758,1705367439703,-500.0,0.00022183,2]
[311729759,1705367439712,-500.0,0.00022183,2]
[311729760,1705367439722,-500.0,0.00022183,2]
[311729761,1705367439731,-500.0,0.00022183,2]
[311729762,1705367439740,-500.0,0.00022183,2]
[311729763,1705367439749,-500.0,0.00022183,2]
[311729764,1705367439758,-500.0,0.00022183,2]
[311729765,1705367439768,-528.28693854,0.00022183,2]
[311729766,1705367439777,-500.0,0.00022183,2]
[311729767,1705367439789,-500.0,0.00022183,2]
[311729768,1705367439799,-500.0,0.00022183,2]
[311729769,1705367439808,-591.63,0.00022183,2]
[311729770,1705367439818,-500.0,0.00022183,2]
[311729771,1705367439827,-500.0,0.00022183,2]
[311729772,1705367439836,-500.0,0.00022183,2]
[311729773,1705367439845,-500.0,0.00022183,2]
[311729774,1705367439854,-500.0,0.00022183,2]
[311729775,1705367439863,-713.94,0.00022183,2]
[311729776,1705367439872,-500.0,0.00022183,2]
[311729778,1705367439882,-638.35,0.00022183,2]
[311729780,1705367439891,-500.0,0.00022183,2]
[311729783,1705367439901,-500.0,0.00022183,2]
[311729785,1705367439910,-500.0,0.00022183,2]
[311729786,1705367439919,-500.0,0.00022183,2]
[311729787,1705367439928,-781.18,0.00022183,2]
[311729788,1705367439937,-1351.27219023,0.00022184,2]
[311729789,1705367439946,-234.89341102,0.00022184,2]
[311729790,1705367439956,-500.0,0.00022184,2]
[311729791,1705367439965,-500.0,0.00022184,2]
[311729792,1705367439973,-500.0,0.00022184,2]
[311729793,1705367439982,-500.0,0.00022184,2]
[311729794,1705367439992,-581.71,0.00022184,2]
[311729796,1705367440001,-502.4,0.00022184,2]
[311729798,1705367440010,-796.32,0.00022184,2]
[311729799,1705367440020,-500.0,0.00022184,2]
[311729801,1705367440029,-500.0,0.00022184,2]
[311729803,1705367440038,-500.0,0.00022184,2]
[311729804,1705367440047,-500.0,0.00022184,2]
[311729806,1705367440057,-500.0,0.00022184,2]
[311729808,1705367440067,-1255.48,0.00022184,2]
[311729810,1705367440076,-521.86967819,0.00022184,2]
[311729811,1705367440085,-500.0,0.00022184,2]
[311729813,1705367440094,-500.0,0.00022184,2]
[311729815,1705367440103,-1069.96,0.00022184,2]
[311729816,1705367440113,-545.54,0.00022184,2]
[311729818,1705367440122,-818.7,0.00022184,2]
[311729820,1705367440131,-500.0,0.00022184,2]
[311729822,1705367440140,-500.0,0.00022184,2]
[311729823,1705367440149,-1221.42,0.00022184,2]
[311729825,1705367440158,-500.0,0.00022184,2]
[311729827,1705367440167,-761.06,0.00022184,2]
[311729829,1705367440176,-500.0,0.00022184,2]
[311729830,1705367440186,-645.46,0.00022184,2]
[311729832,1705367440195,-679.09,0.00022184,2]
[311729834,1705367440204,-500.0,0.00022184,2]
[311729836,1705367440213,-502.07,0.00022184,2]
[311729838,1705367440222,-500.0,0.00022184,2]
[311729839,1705367440231,-598.61,0.00022184,2]
[311729841,1705367440239,-779.79,0.00022184,2]
[311729843,1705367440248,-490.38841075,0.00022184,2]
[311729845,1705367440257,-500.0,0.00022184,2]
[311729846,1705367440267,-715.94,0.00022184,2]
[311729848,1705367440277,-500.0,0.00022184,2]
[311729850,1705367440286,-582.4,0.00022184,2]
[311729851,1705367440295,-657.1,0.00022184,2]
[311729852,1705367440304,-1033.9,0.00022184,2]
[311729853,1705367440313,-694.4,0.00022184,2]
[311729854,1705367440323,-995.24,0.00022184,2]
[311729855,1705367440332,-676.64,0.00022184,2]
[311729857,1705367440342,-500.0,0.00022184,2]
[311729858,1705367440351,-753.21,0.00022184,2]
[311729859,1705367440360,-500.0,0.00022184,2]
[311729860,1705367440369,-500.0,0.00022184,2]
[311729861,1705367440379,-595.41,0.00022184,2]
[311729862,1705367440391,-500.0,0.00022184,2]
[311729863,1705367440400,-500.0,0.00022184,2]
[311729864,1705367440410,-769.64,0.00022184,2]
[311729865,1705367440419,-682.94,0.00022184,2]
[311729866,1705367440429,-525.34283133,0.00022184,2]
[311729867,1705367440438,-871.75,0.00022184,2]
[311729868,1705367440448,-508.6,0.00022184,2]
[311729869,1705367440458,-500.0,0.00022184,2]
[311729870,1705367440468,-797.89,0.00022184,2]
[311729871,1705367440477,-500.0,0.00022184,2]
[311729872,1705367440487,-500.0,0.00022184,2]
[311729873,1705367440496,-786.17,0.00022184,2]
[311729874,1705367440506,-384.0999913,0.00022184,2]
[311729875,1705367440515,-500.0,0.00022184,2]
[311729876,1705367440525,-500.0,0.00022184,2]
[311729877,1705367440534,-500.0,0.00022184,2]
[311729878,1705367440544,-510.49,0.00022184,2]
[311729879,1705367440553,-664.28,0.00022184,2]
[311729880,1705367440562,-500.0,0.00022184,2]
[311729881,1705367440571,-500.0,0.00022184,2]
[311729882,1705367440581,-559.52,0.00022184,2]
[311729883,1705367440590,-500.0,0.00022184,2]
[311729884,1705367440600,-598.77,0.00022184,2]
[311729885,1705367440609,-500.0,0.00022184,2]
[311729886,1705367440618,-510.18,0.00022184,2]
[311729887,1705367440626,-674.89,0.00022184,2]
[311729888,1705367440639,-725.31,0.00022184,2]
[311729889,1705367440649,-500.0,0.00022184,2]
[311729890,1705367440658,-762.61,0.00022184,2]
[311729891,1705367440669,-500.0,0.00022184,2]
[311729892,1705367440678,-500.0,0.00022184,2]
[311729893,1705367440687,-500.0,0.00022184,2]
[311729894,1705367440696,-797.37,0.00022184,2]
[311729895,1705367440706,-1467.91,0.00022184,2]
[311729896,1705367440715,-500.0,0.00022184,2]
[311729897,1705367440724,-772.01,0.00022184,2]
[311729898,1705367440737,-951.8,0.00022184,2]
[311729899,1705367440747,-841.68,0.00022184,2]
[311729900,1705367440756,-903.04,0.00022184,2]
[311729901,1705367440765,-500.0,0.00022184,2]
[311729902,1705367440775,-500.0,0.00022184,2]
[311729903,1705367440785,-500.0,0.00022184,2]
[311729904,1705367440795,-644.47,0.00022184,2]
[311729905,1705367440804,-500.0,0.00022184,2]
[311729906,1705367440813,-500.0,0.00022184,2]
[311729907,1705367440823,-500.0,0.00022184,2]
[311729908,1705367440833,-500.0,0.00022184,2]
[311729909,1705367440842,-500.0,0.00022184,2]
[311729910,1705367440852,-596.33,0.00022184,2]
[311729911,1705367440861,-500.0,0.00022184,2]
[311729912,1705367440872,-540.19,0.00022184,2]
[311729913,1705367440883,-500.0,0.00022184,2]
[311729914,1705367440893,-733.58,0.00022184,2]
[311729915,1705367440902,-500.0,0.00022184,2]
[311729916,1705367440912,-500.0,0.00022184,2]
[311729917,1705367440921,-500.0,0.00022184,2]
[311729918,1705367440931,-500.0,0.00022184,2]
[311729919,1705367440940,-500.0,0.00022184,2]
[311729920,1705367440950,-794.2,0.00022184,2]
[311729921,1705367440960,-500.0,0.00022184,2]
[311729923,1705367440969,-787.33,0.00022184,2]
[311729924,1705367440980,-500.0,0.00022184,2]
[311729926,1705367440989,-500.0,0.00022184,2]
[311729929,1705367440999,-500.0,0.00022184,2]
[311729930,1705367441009,-500.0,0.00022184,2]
[311729932,1705367441018,-721.65,0.00022184,2]
[311729934,1705367441029,-461.03445528,0.00022184,2]
[311729937,1705367441039,-725.89,0.00022184,2]
[311729938,1705367441049,-683.12,0.00022184,2]
[311729940,1705367441059,-500.0,0.00022184,2]
[311729942,1705367441070,-585.29,0.00022184,2]
[311729943,1705367441079,-500.0,0.00022184,2]
[311729944,1705367441089,-500.0,0.00022184,2]
[311729946,1705367441098,-590.15,0.00022184,2]
[311729948,1705367441107,-500.0,0.00022184,2]
[311729950,1705367441117,-500.0,0.00022184,2]
[311729952,1705367441132,-500.0,0.00022184,2]
[311729954,1705367441142,-917.04,0.00022184,2]
[311729955,1705367441151,-555.22,0.00022184,2]
[311729956,1705367441161,-500.0,0.00022184,2]
[311729957,1705367441170,-500.0,0.00022184,2]
[311729958,1705367441180,-341.28537716,0.00022184,2]
[311729959,1705367441189,-587.92,0.00022184,2]
[311729960,1705367441200,-500.0,0.00022184,2]
[311729961,1705367441211,-500.0,0.00022184,2]
[311729962,1705367441220,-713.11,0.00022184,2]
[311729963,1705367441231,-681.52,0.00022184,2]
[311729964,1705367441240,-500.0,0.00022184,2]
[311729965,1705367441249,-500.0,0.00022184,2]
[311729966,1705367441260,-500.0,0.00022184,2]
[311729967,1705367441270,-500.0,0.00022184,2]
[311729968,1705367441280,-500.0,0.00022184,2]
[311729969,1705367441290,-637.72,0.00022184,2]
[311729970,1705367441299,-500.0,0.00022184,2]
[311729971,1705367441309,-500.0,0.00022184,2]
[311729972,1705367441319,-501.37,0.00022184,2]
[311729973,1705367441329,-546.73,0.00022184,2]
[311729974,1705367441338,-575.41,0.00022184,2]
[311729975,1705367441347,-500.0,0.00022184,2]
[311729976,1705367441357,-500.0,0.00022184,2]
[311729977,1705367441367,-3584.02,0.00022184,2]
[311729978,1705367441377,-500.0,0.00022184,2]
[311729979,1705367441388,-730.26,0.00022184,2]
[311729980,1705367441398,-748.13,0.00022184,2]
[311729981,1705367441408,-500.0,0.00022184,2]
[311729982,1705367441418,-500.0,0.00022184,2]
[311729983,1705367441427,-2493.75,0.00022184,2]
[311729984,1705367441437,-1465.39,0.00022184,2]
[311729985,1705367441446,-757.01,0.00022184,2]
[311729986,1705367441634,-500.0,0.00022184,2]
[311729987,1705367441649,-675.59,0.00022184,2]
[311729988,1705367441659,-519.24,0.00022184,2]
[311729989,1705367441669,-1857.11,0.00022184,2]
[311729990,1705367441678,-500.0,0.00022184,2]
[311729991,1705367441689,-500.0,0.00022184,2]
[311729992,1705367441699,-500.0,0.00022184,2]
[311729993,1705367441709,-500.0,0.00022184,2]
[311729994,1705367441719,-500.0,0.00022184,2]
[311729995,1705367441729,-847.81,0.00022184,2]
[311729996,1705367441739,-3107.19,0.00022184,2]
[311729997,1705367441748,-522.89,0.00022184,2]
[311729998,1705367441758,-500.0,0.00022184,2]
[311729999,1705367441768,-795.43,0.00022184,2]
[311730000,1705367441778,-2566.58,0.00022184,2]
[311730001,1705367441787,-203.4560191,0.00022184,2]
[311730002,1705367441797,-684.15,0.00022184,2]
[311730003,1705367441806,-500.0,0.00022184,2]
[311730004,1705367441816,-500.0,0.00022184,2]
[311730005,1705367441825,-5330.48,0.00022184,2]
[311730006,1705367441835,-1206.1,0.00022184,2]
[311730007,1705367441845,-500.0,0.00022184,2]
[311730008,1705367441855,-863.11,0.00022184,2]
[311730009,1705367441865,-1084.77,0.00022184,2]
[311730010,1705367441875,-533.31,0.00022184,2]
[311730011,1705367441886,-747.79,0.00022184,2]
[311730012,1705367441895,-500.0,0.00022184,2]
[311730013,1705367441904,-500.0,0.00022184,2]
[311730014,1705367441913,-1430.46,0.00022184,2]
[311730015,1705367441922,-561.35,0.00022184,2]
[311730016,1705367441932,-500.0,0.00022184,2]
[311730017,1705367441941,-500.0,0.00022184,2]
[311730018,1705367441951,-883.99,0.00022184,2]
[311730019,1705367441961,-305.13956104,0.00022184,2]
[311730020,1705367441970,-577.97,0.00022184,2]
[311730021,1705367441980,-500.0,0.00022184,2]
[311730022,1705367441990,-5389.35,0.00022184,2]
[311730023,1705367441999,-683.86,0.00022184,2]
[311730024,1705367442009,-500.0,0.00022184,2]
[311730025,1705367442019,-500.0,0.00022184,2]
[311730026,1705367442028,-8866.96,0.00022184,2]
[311730027,1705367442039,-2858.9,0.00022184,2]
[311730028,1705367442049,-500.0,0.00022184,2]
[311730029,1705367442059,-500.0,0.00022184,2]
[311730030,1705367442070,-590.82,0.00022184,2]
[311730031,1705367442080,-500.0,0.00022184,2]
[311730032,1705367442090,-598.64,0.00022184,2]
[311730033,1705367442099,-831.24,0.00022184,2]
[311730034,1705367442109,-2120.12,0.00022184,2]
[311730035,1705367442119,-500.0,0.00022184,2]
[311730036,1705367442129,-500.0,0.00022184,2]
[311730037,1705367442141,-1637.7,0.00022184,2]
[311730038,1705367442153,-500.0,0.00022184,2]
[311730039,1705367442164,-500.0,0.00022184,2]
[311730040,1705367442174,-500.0,0.00022184,2]
[311730041,1705367442185,-500.0,0.00022184,2]
[311730042,1705367442195,-200.20305353,0.00022184,2]
[311730043,1705367442205,-500.0,0.00022184,2]
[311730044,1705367442215,-3729.15,0.00022184,2]
[311730045,1705367442226,-554.25,0.00022184,2]
[311730046,1705367442236,-500.0,0.00022184,2]
[311730047,1705367442245,-150.0,0.00022184,2]
[311730048,1705367442254,-1392.96,0.00022184,2]
[311730049,1705367442264,-500.0,0.00022184,2]
[311730050,1705367442273,-500.0,0.00022184,2]
[311730051,1705367442282,-716.25,0.00022184,2]
[311730052,1705367442292,-500.0,0.00022184,2]
[311730053,1705367442301,-400.48710631,0.00022184,2]
[311730054,1705367442310,-731.29,0.00022184,2]
[311730055,1705367442319,-500.0,0.00022184,2]
[311730056,1705367442329,-500.0,0.00022184,2]
[311730057,1705367442338,-500.0,0.00022184,2]
[311730058,1705367442346,-583.02050934,0.00022184,2]
[311730059,1705367442356,-790.2,0.00022184,2]
[311730060,1705367442365,-6373.58,0.00022184,2]
[311730061,1705367442375,-239.25132296,0.00022184,2]
[311730062,1705367442386,-500.0,0.00022184,2]
[311730063,1705367442395,-500.0,0.00022184,2]
[311730064,1705367442405,-716.5,0.00022184,2]
[311730065,1705367442415,-500.0,0.00022184,2]
[311730066,1705367442424,-736.55,0.00022184,2]
[311730067,1705367442433,-1173.23,0.00022184,2]
[311730068,1705367442442,-500.0,0.00022184,2]
[311730070,1705367442451,-859.75,0.00022184,2]
[311730072,1705367442460,-1038.83,0.00022184,2]
[311730073,1705367442470,-500.0,0.00022184,2]
[311730074,1705367442478,-500.0,0.00022184,2]
[311730075,1705367442487,-500.0,0.00022184,2]
[311730076,1705367442497,-500.0,0.00022184,2]
[311730079,1705367442506,-500.0,0.00022184,2]
[311730081,1705367442515,-559.29,0.00022184,2]
[311730082,1705367442525,-719.41,0.00022184,2]
[311730083,1705367442534,-500.0,0.00022184,2]
[311730084,1705367442543,-572.62,0.00022184,2]
[311730085,1705367442553,-500.0,0.00022184,2]
[311730086,1705367442562,-278.40034458,0.00022184,2]
[311730087,1705367442572,-500.0,0.00022184,2]
[311730088,1705367442581,-500.0,0.00022184,2]
[311730089,1705367442591,-500.0,0.00022184,2]
[311730090,1705367442601,-500.0,0.00022184,2]
[311730091,1705367442610,-680.75,0.00022184,2]
[311730092,1705367442619,-1656.23,0.00022184,2]
[311730093,1705367442629,-500.0,0.00022184,2]
[311730094,1705367442642,-534.09002174,0.00022184,2]
[311730095,1705367442652,-579.24,0.00022184,2]
[311730096,1705367442661,-500.0,0.00022184,2]
[311730097,1705367442671,-500.0,0.00022184,2]
[311730098,1705367442681,-1178.32,0.00022184,2]
[311730099,1705367442690,-500.0,0.00022184,2]
[311730100,1705367442701,-554.2499309,0.00022184,2]
[311730101,1705367442711,-500.0,0.00022184,2]
[311730102,1705367442721,-500.0,0.00022184,2]
[311730103,1705367442731,-1556.39,0.00022184,2]
[311730104,1705367442742,-500.0,0.00022184,2]
[311730105,1705367442751,-500.0,0.00022184,2]
[311730106,1705367442761,-166.81160358,0.00022184,2]
[311730107,1705367442770,-500.0,0.00022184,2]
[311730108,1705367442779,-500.0,0.00022184,2]
[311730109,1705367442789,-733.76,0.00022184,2]
[311730110,1705367442799,-500.0,0.00022184,2]
[311730111,1705367442808,-772.5,0.00022184,2]
[311730112,1705367442818,-681.75,0.00022184,2]
[311730113,1705367442829,-1514.15,0.00022184,2]
[311730114,1705367442839,-500.0,0.00022184,2]
[311730115,1705367442848,-500.0,0.00022184,2]
[311730116,1705367442858,-620.91522628,0.00022184,2]
[311730117,1705367442869,-500.0,0.00022184,2]
[311730118,1705367442878,-502.37027402,0.00022184,2]
[311730119,1705367442890,-1490.21,0.00022184,2]
[311730120,1705367442899,-874.11,0.00022184,2]
[311730121,1705367442909,-500.0,0.00022184,2]
[311730122,1705367442919,-500.0,0.00022184,2]
[311730123,1705367442929,-821.2,0.00022184,2]
[311730124,1705367442939,-1700.4,0.00022184,2]
[311730125,1705367442948,-500.0,0.00022184,2]
[311730126,1705367442957,-500.0,0.00022184,2]
[311730127,1705367442967,-2822.12,0.00022184,2]
[311730128,1705367442977,-500.61981893,0.00022184,2]
[311730129,1705367442986,-500.0,0.00022184,2]
[311730130,1705367442996,-500.0,0.00022184,2]
[311730131,1705367443006,-500.0,0.00022184,2]
[311730132,1705367443016,-535.24,0.00022184,2]
[311730133,1705367443026,-769.1,0.00022184,2]
[311730134,1705367443036,-4554.81,0.00022184,2]
[311730136,1705367443045,-611.38,0.00022184,2]
[311730139,1705367443055,-1768.16,0.00022184,2]
[311730142,1705367443064,-501.7043649,0.00022184,2]
[311730145,1705367443075,-400.23377703,0.00022184,2]
[311730148,1705367443084,-500.0,0.00022184,2]
[311730149,1705367443094,-500.0,0.00022184,2]
[311730152,1705367443104,-268.13381279,0.00022184,2]
[311730154,1705367443113,-637.62,0.00022184,2]
[311730155,1705367443123,-500.0,0.00022184,2]
[311730157,1705367443138,-516.79,0.00022184,2]
[311730158,1705367443149,-500.0,0.00022184,2]
[311730159,1705367443159,-500.0,0.00022184,2]
[311730160,1705367443171,-736.81,0.00022184,2]
[311730161,1705367443181,-736.79,0.00022184,2]
[311730162,1705367443191,-737.53,0.00022185,2]
[311730163,1705367443202,-721.66,0.00022185,2]
[311730164,1705367443214,-716.9,0.00022185,2]
[311730165,1705367443223,-716.54,0.00022185,2]
[311730166,1705367443234,-714.64,0.00022185,2]
[311730167,1705367443245,-714.18,0.00022185,2]
[311730168,1705367443254,-722.56,0.00022185,2]
[311730169,1705367443264,-736.44,0.00022185,2]
[311730170,1705367443273,-723.76,0.00022185,2]
[311730171,1705367443283,-714.55,0.00022185,2]
[311730172,1705367443293,-726.08,0.00022185,2]
[311730173,1705367443303,-33348.62482319,0.00022185,2]
[311730174,1705367443313,-3564.50272373,0.00022185,2]
[311730175,1705367443323,-237.16866319,0.00022185,2]
[311730176,1705367443333,-155.0,0.00022185,2]
[311730177,1705367443343,-155.14404396,0.00022185,2]
[311730178,1705367443352,-155.0,0.00022185,2]
[311730179,1705367443361,-1048.67339224,0.00022185,2]
[311730180,1705367443370,-4555.69757897,0.00022185,2]
[311730181,1705367443379,-155.0,0.00022185,2]
[311730182,1705367443391,-1670.77159327,0.00022185,2]
[311730183,1705367443400,-300.45949591,0.00022185,2]
[311730184,1705367443409,-385.69264923,0.00022185,2]
[311730185,1705367443420,-155.0,0.00022185,2]
[311730186,1705367443430,-1151.76,0.00022185,2]
[311730187,1705367443439,-4311.77,0.00022185,2]
[311730188,1705367443449,-2013.36,0.00022185,2]
[311730189,1705367443459,-500.0,0.00022185,2]
[311730190,1705367443468,-2900.53,0.00022185,2]
[311730191,1705367443477,-774.98,0.00022185,2]
[311730192,1705367443487,-1349.05,0.00022185,2]
[311730193,1705367443497,-500.0,0.00022185,2]
[311730194,1705367443506,-623.71,0.00022185,2]
[311730195,1705367443517,-500.0,0.00022185,2]
[311730196,1705367443526,-1294.89,0.00022185,2]
[311730197,1705367443535,-3067.69,0.00022185,2]
[311730198,1705367443546,-3247.48,0.00022185,2]
[311730199,1705367443556,-6519.47,0.00022185,2]
[311730200,1705367443566,-8337.88,0.00022185,2]
[311730201,1705367443575,-156.09375,0.00022185,2]
[311730202,1705367443586,-1079.19,0.00022185,2]
[311730203,1705367443597,-709.76,0.00022185,2]
[311730204,1705367443607,-500.0,0.00022185,2]
[311730205,1705367443617,-4162.99,0.00022185,2]
[311730206,1705367443626,-6872.96,0.00022185,2]
[311730207,1705367443638,-3767.92,0.00022185,2]
[311730208,1705367443647,-2407.47,0.00022185,2]
[311730209,1705367443657,-1165.11,0.00022185,2]
[311730210,1705367443667,-2195.48,0.00022185,2]
[311730211,1705367443678,-3092.74,0.00022185,2]
[311730212,1705367443687,-1733.11,0.00022185,2]
[311730213,1705367443697,-2933.67,0.00022185,2]
[311730214,1705367443706,-1668.34,0.00022185,2]
[311730215,1705367443716,-3729.15,0.00022185,2]
[311730216,1705367443725,-813.09,0.00022186,2]
[311730217,1705367443734,-6157.37,0.00022186,2]
[311730218,1705367443743,-765.63129887,0.00022186,2]
[311730219,1705367443753,-732.68,0.00022186,2]
[311730220,1705367443763,-711.74,0.00022186,2]
[311730221,1705367443773,-729.21,0.00022186,2]
[311730222,1705367443783,-736.32,0.00022186,2]
[311730223,1705367443793,-220.5,0.00022186,2]
[311730224,1705367443802,-500.0,0.00022187,2]
[311730225,1705367443813,-500.0,0.00022187,2]
[311730226,1705367443824,-575.4,0.00022187,2]
[311730227,1705367443835,-680.06,0.00022187,2]
[311730228,1705367443844,-519.13,0.00022187,2]
[311730229,1705367443855,-794.33,0.00022187,2]
[311730230,1705367443864,-876.12,0.00022187,2]
[311730231,1705367443874,-500.0,0.00022187,2]
[311730232,1705367443885,-606.35,0.00022187,2]
[311730233,1705367443894,-500.0,0.00022187,2]
[311730234,1705367443903,-756.9,0.00022187,2]
[311730235,1705367443913,-221.81245113,0.00022187,2]
[311730236,1705367443923,-500.0,0.00022187,2]
[311730237,1705367443932,-658.84,0.00022187,2]
[311730238,1705367443942,-500.0,0.00022187,2]
[311730239,1705367443951,-632.43,0.00022187,2]
[311730240,1705367443961,-500.0,0.00022187,2]
[311730241,1705367443970,-500.0,0.00022187,2]
[311730242,1705367443980,-500.0,0.00022187,2]
[311730243,1705367443989,-500.0,0.00022187,2]
[311730244,1705367443998,-500.0,0.00022187,2]
[311730245,1705367444008,-500.0,0.00022187,2]
[311730246,1705367444017,-500.0,0.00022187,2]
[311730247,1705367444026,-783.41,0.00022187,2]
[311730248,1705367444036,-585.22,0.00022187,2]
[311730249,1705367444045,-500.0,0.00022187,2]
[311730250,1705367444055,-500.0,0.00022187,2]
[311730251,1705367444065,-549.05,0.00022187,2]
[311730252,1705367444074,-500.0,0.00022187,2]
[311730253,1705367444084,-658.47,0.00022187,2]
[311730254,1705367444094,-500.0,0.00022187,2]
[311730255,1705367444103,-504.4,0.00022187,2]
[311730256,1705367444113,-500.0,0.00022187,2]
[311730257,1705367444122,-500.0,0.00022187,2]
[311730258,1705367444132,-500.0,0.00022187,2]
[311730259,1705367444141,-573.8263868,0.00022187,2]
[311730260,1705367444150,-504.9,0.00022187,2]
[311730261,1705367444159,-566.92,0.00022187,2]
[311730262,1705367444509,-1109.38,0.00022187,2]
[311730263,1705367444523,-762.69,0.00022187,2]
[311730264,1705367444533,-500.0,0.00022187,2]
[311730265,1705367444542,-500.0,0.00022187,2]
[311730266,1705367444552,-500.0,0.00022187,2]
[311730267,1705367444562,-500.0,0.00022187,2]
[311730268,1705367444571,-571.09,0.00022187,2]
[311730269,1705367444580,-576.81,0.00022187,2]
[311730270,1705367444590,-500.0,0.00022187,2]
[311730271,1705367444599,-500.0,0.00022187,2]
[311730272,1705367444609,-500.0,0.00022187,2]
[311730273,1705367444618,-507.36,0.00022187,2]
[311730274,1705367444628,-500.0,0.00022187,2]
[311730275,1705367444638,-500.0,0.00022187,2]
[311730276,1705367444647,-500.0,0.00022187,2]
[311730277,1705367444658,-500.0,0.00022187,2]
[311730278,1705367444669,-500.0,0.00022187,2]
[311730279,1705367444679,-185.83550075,0.00022187,2]
[311730280,1705367444689,-507.89,0.00022187,2]
[311730281,1705367444699,-728.33,0.00022187,2]
[311730282,1705367444710,-1034.17,0.00022187,2]
[311730283,1705367444720,-500.0,0.00022187,2]
[311730284,1705367444729,-500.0,0.00022187,2]